bitfinex-derivatives/quotes_BNBF0:USTF0_20250617
["timestamp","ask_amount","ask_price","bid_price","bid_amount"]
[1750188312128,0.26802218,649.61,648.74,1.52009647]
[1750188312527,0.26802218,649.61,648.73,1.52009647]
[1750188312827,0.26802218,649.61,648.72,1.52009647]
[1750188313127,0.26802218,649.61,648.73,1.52009647]
[1750188313324,0.26802218,649.61,648.72,1.52009647]
[1750188313926,0.26802218,649.61,648.75,1.52009647]
[1750188314129,0.26802218,649.61,648.76,1.52009647]
[1750188314325,0.26802218,649.61,648.75,1.52009647]
[1750188315228,0.26802218,649.61,648.76,1.52009647]
[1750188315428,0.26802218,649.61,648.75,1.52009647]
[1750188315928,1.15000835,649.6,648.77,1.52009647]
[1750188316128,1.15000835,649.57,648.77,1.52009647]
[1750188316325,1.15000835,649.57,648.76,1.52009647]
[1750188316829,1.15000835,649.55,648.74,1.52009647]
[1750188317029,1.15000835,649.56,648.75,1.52009647]
[1750188317329,1.15000835,649.55,648.74,1.52009647]
[1750188317629,1.15000835,649.55,648.73,1.52009647]
[1750188317929,1.15000835,649.54,648.73,1.52009647]
[1750188318529,0.26802218,649.61,648.68,1.119]
[1750188318530,1.15000835,649.56,648.68,1.119]
[1750188318728,1.15000835,649.56,648.69,0.30831367]
[1750188319129,1.15000835,649.55,648.69,0.30831367]
[1750188319330,1.15000835,649.56,648.69,0.30831367]
[1750188321129,1.15000835,649.55,648.69,0.30831367]
[1750188321531,1.15000835,649.56,648.69,0.30831367]
[1750188322433,1.15000835,649.56,648.68,1.119]
[1750188322933,0.26802218,649.61,648.68,1.119]
[1750188323132,1.15000835,649.59,648.68,1.119]
[1750188323433,1.15000835,649.58,648.68,1.119]
[1750188323636,1.15000835,649.59,648.68,1.119]
[1750188324032,1.15000835,649.58,648.68,1.119]
[1750188325136,1.15000835,649.55,648.68,1.119]
[1750188326340,1.15000835,649.55,648.67,1.048]
[1750188327039,1.15000835,649.56,648.67,1.048]
[1750188327339,1.15000835,649.55,648.67,1.048]
[1750188327533,1.15000835,649.56,648.67,1.048]
[1750188328436,1.15000835,649.55,648.67,1.048]
[1750188329239,1.15000835,649.54,648.67,1.048]
[1750188329838,1.15000835,649.54,648.68,1.444]
[1750188330344,1.15000835,649.54,648.69,1.249]
[1750188332444,1.15000835,649.53,648.69,1.249]
[1750188334244,1.15000835,649.52,648.69,1.249]
[1750188335048,1.15000835,649.51,648.69,1.249]
[1750188335249,1.15000835,649.46,648.69,1.249]
[1750188335650,1.15000835,649.45,648.69,1.249]
[1750188336949,1.15000835,649.44,648.69,1.249]
[1750188337452,1.15000835,649.42,648.69,1.249]
[1750188338551,1.15000835,649.41,648.69,1.249]
[1750188341556,1.15000835,649.4,648.69,1.249]
[1750188341748,1.15000835,649.41,648.69,1.249]
[1750188343048,1.15000835,649.4,648.69,1.249]
[1750188343550,1.15000835,649.4,648.68,1.444]
[1750188343854,1.15000835,649.39,648.68,1.444]
[1750188344054,1.15000835,649.4,648.68,1.444]
[1750188345055,1.15000835,649.39,648.68,1.444]
[1750188345948,1.15000835,649.38,648.68,1.444]
[1750188346953,1.15000835,649.38,648.67,1.048]
[1750188347152,1.15000835,649.38,648.69,1.05]
[1750188347658,1.15000835,649.32,648.69,1.05]
[1750188347855,1.15000835,649.31,648.69,1.05]
[1750188348658,1.15000835,649.32,648.69,1.05]
[1750188349055,1.15000835,649.35,648.7,0.995]
[1750188351660,1.15000835,649.39,648.7,0.995]
[1750188355261,1.15000835,649.4,648.7,0.995]
[1750188355666,1.15000835,649.35,648.7,0.995]
[1750188355963,1.15000835,649.33,648.7,0.995]
[1750188356362,1.15000835,649.34,648.7,0.995]
[1750188357568,1.15000835,649.36,648.7,0.995]
[1750188357765,0.2681306,649.2,648.7,0.995]
[1750188362169,0.2681306,649.2,648.71,1.391]
[1750188376086,1.15000835,649.17,648.71,1.391]
[1750188376679,1.15000835,649.18,648.71,1.391]
[1750188376879,1.15000835,649.17,648.71,1.391]
[1750188378083,0.2681306,649.2,648.71,1.391]
[1750188378084,1.15000835,649.16,648.71,1.391]
[1750188378578,0.2681306,649.2,648.71,1.391]
[1750188378579,1.15000835,649.17,648.71,1.391]
[1750188379387,1.15000835,649.16,648.71,1.391]
[1750188379682,0.2681306,649.2,648.71,1.391]
[1750188379683,1.15000835,649.17,648.71,1.391]
[1750188380383,1.15000835,649.16,648.71,1.391]
[1750188380685,1.15000835,649.16,648.72,1.29]
[1750188381481,1.15000835,649.14,648.72,1.29]
[1750188381686,1.15000835,649.15,648.72,1.29]
[1750188382486,1.15000835,649.14,648.72,1.29]
[1750188382983,1.15000835,649.15,648.72,1.29]
[1750188385385,0.2681306,649.2,648.72,1.29]
[1750188391693,1.15000835,649.18,648.72,1.29]
[1750188391996,1.15000835,649.15,648.72,1.29]
[1750188392698,1.15000835,649.14,648.72,1.29]
[1750188393994,1.15000835,649.14,648.73,1.056]
[1750188394399,1.15000835,649.13,648.73,1.056]
[1750188394597,1.15000835,649.14,648.73,1.056]
[1750188395398,1.15000835,649.12,648.73,1.056]
[1750188395597,1.15000835,649.14,648.73,1.056]
[1750188396198,1.15000835,649.13,648.73,1.056]
[1750188396398,1.15000835,649.13,648.74,1.45]
[1750188396596,1.15000835,649.14,648.74,1.45]
[1750188396801,1.15000835,649.02,648.74,1.45]
[1750188397004,1.15000835,649.0,648.74,1.45]
[1750188397399,1.15000835,648.97,648.74,1.45]
[1750188397602,1.15000835,648.96,648.74,1.45]
[1750188398307,1.15000835,648.95,648.74,1.45]
[1750188398708,1.15000835,648.96,648.74,1.45]
[1750188399109,1.15000835,648.92,648.74,1.45]
[1750188399407,1.15000835,648.89,648.74,1.45]
[1750188400108,1.15000835,648.88,648.74,1.45]
[1750188400705,1.14752335,648.89,648.74,1.45]
[1750188401310,1.14752335,648.88,648.74,1.45]
[1750188401510,1.14752335,648.89,648.74,1.45]
[1750188403108,1.14752335,648.9,648.74,1.45]
[1750188403311,1.14752335,648.89,648.74,1.45]
[1750188403606,1.14752335,648.84,648.74,1.45]
[1750188403809,1.14752335,648.87,648.74,1.45]
[1750188404309,1.14752335,648.86,648.74,1.45]
[1750188404714,1.14752335,648.87,648.74,1.45]
[1750188405311,1.14752335,648.86,648.74,1.45]
[1750188405515,1.14752335,648.87,648.74,1.45]
[1750188408014,1.14752335,648.86,648.74,1.45]
[1750188408214,1.14752335,648.85,648.74,1.45]
[1750188408519,1.14752335,648.82,648.74,1.45]
[1750188408920,1.14752335,648.8,648.74,1.45]
[1750188409121,1.53003113,648.85,648.74,1.45]
[1750188409320,1.53003113,648.84,648.74,1.45]
[1750188409517,1.53003113,648.82,648.74,1.45]
[1750188409718,1.53003113,648.83,648.74,1.45]
[1750188409922,1.53003113,648.85,648.74,1.45]
[1750188410422,0.3082424,648.84,648.74,1.45]
[1750188410819,1.58510849,648.84,648.74,1.45]
[1750188411023,0.3082424,648.84,648.74,1.45]
[1750188412426,0.3082424,648.84,648.73,1.056]
[1750188412627,1.14612188,648.74,648.73,1.056]
[1750188413628,1.14612188,648.75,648.73,1.056]
[1750188416632,1.14612188,648.8,648.73,1.056]
[1750188416828,1.14612188,648.82,648.73,1.056]
[1750188417132,1.14612188,648.81,648.73,1.056]
[1750188417529,1.14612188,648.82,648.73,1.056]
[1750188418134,1.45436428,648.84,648.73,1.056]
[1750188418734,1.14612188,648.83,648.73,1.056]
[1750188418934,1.45436428,648.84,648.73,1.056]
[1750188419132,0.3082424,648.84,648.73,1.056]
[1750188419334,1.45436428,648.84,648.73,1.056]
[1750188419735,1.14612188,648.83,648.73,1.056]
[1750188420034,0.3082424,648.84,648.73,1.056]
[1750188423939,1.14612188,648.95,648.73,1.056]
[1750188424337,1.14612188,648.95,648.64,1.343]
[1750188424832,1.14612188,648.96,648.64,1.343]
[1750188425437,1.14612188,648.95,648.64,1.343]
[1750188425740,1.14612188,648.94,648.64,1.343]
[1750188426838,1.27567338,649.05,648.64,1.343]
[1750188427037,1.14622423,648.94,648.64,1.343]
[1750188427840,1.14622423,648.94,648.65,1.214]
[1750188428343,1.14622423,648.95,648.65,1.214]
[1750188430944,1.14622423,648.94,648.65,1.214]
[1750188432146,1.14622423,648.93,648.65,1.214]
[1750188433548,1.14622423,648.92,648.65,1.214]
[1750188435349,1.14622423,648.91,648.65,1.214]
[1750188437251,1.14622423,648.98,648.65,1.214]
[1750188437547,1.14622423,648.97,648.65,1.214]
[1750188442048,1.14622423,648.96,648.65,1.214]
[1750188442449,1.14622423,648.97,648.65,1.214]
[1750188444051,1.14622423,648.98,648.65,1.214]
[1750188444254,1.14622423,648.96,648.65,1.214]
[1750188444850,1.14622423,648.96,648.66,1.448]
[1750188447151,1.14622423,648.92,648.66,1.448]
[1750188448153,1.14622423,648.93,648.66,1.448]
[1750188448758,1.14622423,649.09,648.66,1.448]
[1750188448955,1.14622423,649.11,648.66,1.448]
[1750188449159,1.14622423,649.16,648.66,1.448]
[1750188449659,1.14622423,649.18,648.66,1.448]
[1750188450556,1.14622423,649.19,648.66,1.448]
[1750188450759,1.14622423,649.18,648.66,1.448]
[1750188451359,1.14622423,649.19,648.66,1.448]
[1750188451556,1.14622423,649.17,648.66,1.448]
[1750188451859,0.2681306,649.2,648.66,1.448]
[1750188457060,0.2681306,649.2,648.67,1.378]
[1750188457265,0.2681306,649.2,648.67,2.316]
[1750188461064,0.2681306,649.2,648.68,1.189]
[1750188466166,1.41585918,649.2,648.68,1.189]
[1750188466367,1.14772858,649.16,648.68,1.189]
[1750188466671,1.14772858,649.17,648.68,1.189]
[1750188466871,1.14772858,649.18,648.68,1.189]
[1750188468976,1.14772858,649.17,648.68,1.189]
[1750188469177,1.14772858,649.18,648.68,1.189]
[1750188469380,1.14772858,649.17,648.68,1.189]
[1750188470277,1.14772858,649.16,648.68,1.189]
[1750188471583,1.14772858,649.14,648.68,1.189]
[1750188472490,1.14772858,649.16,648.68,1.189]
[1750188472680,1.14772858,649.13,648.68,1.189]
[1750188473281,1.14772858,649.12,648.68,1.189]
[1750188473484,1.14772858,649.1,648.68,1.189]
[1750188473785,1.14772858,649.06,648.68,1.189]
[1750188474382,1.14772858,649.05,648.68,1.189]
[1750188474586,1.14772858,649.04,648.68,1.189]
[1750188474989,1.14772858,649.04,648.67,2.316]
[1750188475388,1.14772858,649.03,648.67,2.316]
[1750188476291,1.14772858,649.03,648.67,1.378]
[1750188476691,1.14772858,649.02,648.67,1.378]
[1750188476891,1.14772858,649.03,648.67,1.378]
[1750188477389,1.14772858,649.02,648.67,1.378]
[1750188478792,1.14772858,649.02,648.68,1.448]
[1750188478992,1.14772858,649.02,648.68,2.654]
[1750188479487,1.14772858,649.01,648.68,2.654]
[1750188479693,1.14772858,649.14,648.68,2.654]
[1750188480290,1.14772858,649.13,648.68,2.654]
[1750188480593,1.14772858,649.11,648.68,2.654]
[1750188480791,1.14772858,649.11,648.69,1.44]
[1750188481194,1.14772858,649.07,648.69,1.44]
[1750188481495,1.14772858,649.02,648.69,1.44]
[1750188482092,1.14772858,648.99,648.69,1.44]
[1750188482689,1.14772858,649.0,648.69,1.44]
[1750188482894,1.14772858,648.97,648.69,1.44]
[1750188483693,1.14772858,648.98,648.69,1.44]
[1750188485394,1.14772858,648.99,648.69,1.44]
[1750188485799,1.14772858,648.98,648.69,1.44]
[1750188488401,1.26900702,649.11,648.69,1.44]
[1750188488604,1.53003113,649.12,648.69,1.44]
[1750188488904,1.14821333,648.98,648.69,1.44]
[1750188489103,1.14821333,648.92,648.69,1.44]
[1750188489604,1.26900702,649.05,648.69,1.44]
[1750188489803,0.2681306,649.2,648.69,1.44]
[1750188490000,0.30807621,649.19,648.69,1.44]
[1750188490400,1.14835428,648.87,648.69,1.44]
[1750188490608,1.14835428,648.84,648.69,1.44]
[1750188490802,1.14835428,648.85,648.69,1.44]
[1750188491400,1.14829567,648.85,648.69,1.44]
[1750188491602,1.14829567,648.86,648.69,1.44]
[1750188491799,1.14829567,648.87,648.69,1.44]
[1750188495508,1.14829567,648.83,648.69,1.44]
[1750188497308,1.14829567,648.81,648.69,1.44]
[1750188497710,1.14829567,648.82,648.69,1.44]
[1750188497909,1.14829567,648.82,648.68,2.654]
[1750188498608,1.14829567,648.84,648.68,2.654]
[1750188499609,1.14829567,648.88,648.69,1.452]
[1750188499810,1.14829567,648.91,648.69,1.452]
[1750188500610,1.14829567,648.92,648.69,1.452]
[1750188501012,1.14829567,648.94,648.69,1.452]
[1750188501215,1.14829567,648.93,648.69,1.452]
[1750188501508,1.14734459,648.94,648.69,1.452]
[1750188503515,1.14734459,648.95,648.69,1.452]
[1750188505811,1.14734459,648.95,648.7,1.093]
[1750188510221,1.14734459,648.95,648.71,1.314]
[1750188511421,1.14734459,648.96,648.71,1.314]
[1750188511721,1.14734459,648.95,648.71,1.314]
[1750188512421,1.2675462,649.07,648.71,1.314]
[1750188512619,1.14773602,648.95,648.71,1.314]
[1750188514123,1.14773602,648.98,648.71,1.314]
[1750188514622,1.14773602,648.97,648.71,1.314]
[1750188515320,1.14773602,648.98,648.71,1.314]
[1750188515520,1.14773602,648.97,648.71,1.314]
[1750188515920,1.14773602,648.98,648.71,1.314]
[1750188516119,1.14773602,648.97,648.71,1.314]
[1750188517022,1.14773602,649.04,648.71,1.314]
[1750188517823,1.14773602,649.05,648.71,1.314]
[1750188518524,1.14773602,649.04,648.71,1.314]
[1750188519423,1.14773602,649.03,648.71,1.314]
[1750188519723,1.14773602,649.04,648.71,1.314]
[1750188520026,1.14773602,649.05,648.71,1.314]
[1750188520528,1.14773602,649.03,648.71,1.314]
[1750188520731,1.14773602,649.04,648.71,1.314]
[1750188520926,1.14773602,649.03,648.71,1.314]
[1750188521326,1.14773602,649.02,648.71,1.314]
[1750188521732,1.14773602,649.03,648.71,1.314]
[1750188522527,1.14773602,649.02,648.71,1.314]
[1750188523332,1.14773602,649.01,648.71,1.314]
[1750188523927,1.14773602,649.0,648.71,1.314]
[1750188525235,1.14773602,649.04,648.71,1.314]
[1750188525830,1.14773602,649.04,648.72,1.45]
[1750188526038,1.14773602,649.06,648.72,1.45]
[1750188526343,1.14773602,649.05,648.72,1.45]
[1750188526940,1.14773602,649.04,648.72,1.45]
[1750188527341,1.14773602,649.06,648.72,1.45]
[1750188527541,1.14773602,649.05,648.72,1.45]
[1750188528039,1.14773602,649.06,648.72,1.45]
[1750188528443,1.14773602,649.07,648.72,1.45]
[1750188528638,1.14773602,649.08,648.72,1.45]
[1750188528844,1.14773602,649.06,648.72,1.45]
[1750188529040,1.14773602,649.07,648.72,1.45]
[1750188529339,1.14773602,649.09,648.72,1.45]
[1750188529844,1.14773602,649.1,648.72,1.45]
[1750188530037,1.14773602,649.11,648.72,1.45]
[1750188531442,1.14773602,649.1,648.72,1.45]
[1750188531740,1.14773602,649.11,648.72,1.45]
[1750188532639,1.14773602,649.12,648.72,1.45]
[1750188533343,1.14773602,649.1,648.72,1.45]
[1750188533541,1.14773602,649.14,648.72,1.45]
[1750188533740,1.14773602,649.15,648.72,1.45]
[1750188534043,1.14773602,649.16,648.72,1.45]
[1750188534448,1.14773602,649.17,648.72,1.45]
[1750188535746,1.14773602,649.18,648.72,1.45]
[1750188536148,1.14773602,649.18,648.73,1.448]
[1750188536457,0.30807621,649.19,648.73,1.448]
[1750188536757,1.41586662,649.2,648.73,1.448]
[1750188536951,0.2681306,649.2,648.73,1.448]
[1750188538051,0.2681306,649.2,648.74,1.452]
[1750188543053,1.14773602,649.36,648.74,1.452]
[1750188543254,0.2681151,649.27,648.74,1.452]
[1750188546453,0.2681151,649.27,648.75,1.393]
[1750188556563,1.14773602,649.46,648.75,1.393]
[1750188556857,0.26807586,649.4,648.75,1.393]
[1750188559859,0.26807586,649.4,648.76,1.447]
[1750188561566,1.14773602,649.62,648.76,1.447]
[1750188561764,1.14773602,649.67,648.76,1.447]
[1750188562067,0.26803973,649.47,648.76,1.447]
[1750188565064,1.14773602,649.7,648.76,1.447]
[1750188565262,0.26801702,649.55,648.76,1.447]
[1750188575470,0.26801702,649.55,648.77,0.984]
[1750188581873,0.26801702,649.55,648.78,1.447]
[1750188588180,0.26801702,649.55,648.79,1.252]
[1750188591582,1.41575304,649.55,648.79,1.252]
[1750188591983,0.26801702,649.55,648.79,1.252]
[1750188592279,1.41575304,649.55,648.79,1.252]
[1750188593483,1.14773602,649.54,648.79,1.252]
[1750188594484,1.14773602,649.53,648.79,1.252]
[1750188596682,1.14773602,649.52,648.79,1.252]
[1750188598481,1.14773602,649.51,648.79,1.252]
[1750188599283,1.14773602,649.49,648.79,1.252]
[1750188599485,1.14773602,649.48,648.79,1.252]
[1750188601891,1.14773602,649.47,648.79,1.252]
[1750188602092,1.14773602,649.49,648.79,1.252]
[1750188602396,1.14773602,649.51,648.79,1.252]
[1750188602988,0.26801702,649.55,648.83,1.51000724]
[1750188603488,1.14773602,649.54,648.81,1.51000724]
[1750188603791,1.14773602,649.63,648.89,1.51000724]
[1750188604098,0.26800773,649.64,648.83,1.51000724]
[1750188604291,0.26800773,649.64,648.84,1.51000724]
[1750188604487,1.14773602,649.74,648.8,1.51000724]
[1750188604698,1.14773602,649.79,648.85,1.51000724]
[1750188604887,0.26797678,649.72,648.84,1.51000724]
[1750188605290,0.26797678,649.72,648.86,1.51000724]
[1750188605692,0.26797678,649.72,648.89,1.51000724]
[1750188606690,0.26797678,649.72,648.88,1.51000724]
[1750188606890,0.26797678,649.72,648.89,1.51000724]
[1750188607099,0.26797678,649.72,648.88,1.51000724]
[1750188607495,0.26797678,649.72,648.89,1.51000724]
[1750188607797,0.26797678,649.72,648.88,1.51000724]
[1750188608398,0.26797678,649.72,648.79,1.252]
[1750188608399,0.26797678,649.72,648.89,1.51000724]
[1750188608595,0.26797678,649.72,648.88,1.51000724]
[1750188609298,0.26797678,649.72,648.86,1.51000724]
[1750188609499,0.26797678,649.72,648.87,1.51000724]
[1750188609697,0.26797678,649.72,648.95,1.51000724]
[1750188609895,0.26797678,649.72,648.74,1.51000724]
[1750188610703,0.26797678,649.72,648.73,1.51000724]
[1750188610897,1.4157128,649.72,648.74,0.30828991]
[1750188611095,1.14773602,649.71,648.74,0.30828991]
[1750188611296,1.14773602,649.65,648.78,1.51000724]
[1750188611795,1.14773602,649.65,648.19,0.26800051]
[1750188611796,1.14773602,649.62,648.83,1.51000724]
[1750188612000,1.14773602,649.61,648.81,1.51000724]
[1750188612198,1.14773602,649.58,648.82,0.3082519]
[1750188612901,1.14773602,649.57,648.82,0.3082519]
[1750188613301,1.14773602,649.55,648.82,0.3082519]
[1750188613502,1.14773602,649.54,648.82,0.3082519]
[1750188613703,1.14773602,649.54,648.83,1.447]
[1750188614002,1.14773602,649.55,648.83,1.447]
[1750188614303,1.14773602,649.54,648.83,1.447]
[1750188614998,1.14773602,649.53,648.83,1.447]
[1750188615206,1.14773602,649.54,648.83,1.447]
[1750188615403,1.14773602,649.53,648.83,1.447]
[1750188615903,1.14773602,649.52,648.83,1.447]
[1750188616405,1.14773602,649.53,648.83,1.447]
[1750188616603,1.14773602,649.51,648.83,1.447]
[1750188616798,1.14773602,649.52,648.83,1.447]
[1750188617403,1.14773602,649.51,648.83,1.447]
[1750188617804,1.14773602,649.52,648.83,1.447]
[1750188618304,1.14773602,649.51,648.83,1.447]
[1750188618504,1.14773602,649.5,648.83,1.447]
[1750188618702,1.14773602,649.48,648.83,1.447]
[1750188619005,1.14773602,649.46,648.83,1.447]
[1750188619204,1.53113904,649.57,648.83,1.447]
[1750188619205,1.14773602,649.47,648.83,1.447]
[1750188619601,1.14773602,649.46,648.83,1.447]
[1750188619800,1.14773602,649.45,648.83,1.447]
[1750188620205,1.14773602,649.44,648.83,1.447]
[1750188620606,1.14773602,649.45,648.83,1.447]
[1750188623711,1.14773602,649.42,648.83,1.447]
[1750188623912,1.14773602,649.4,648.83,1.447]
[1750188624308,1.14773602,649.41,648.83,1.447]
[1750188624711,1.14773602,649.42,648.83,1.447]
[1750188625213,1.14773602,649.43,648.83,1.447]
[1750188625407,1.14773602,649.42,648.83,1.447]
[1750188626913,1.14773602,649.43,648.83,1.447]
[1750188627409,3.8278476,650.2,648.83,1.447]
[1750188627410,1.14773602,649.44,648.83,1.447]
[1750188627811,1.14773602,649.43,648.83,1.447]
[1750188629111,1.14773602,649.43,648.84,1.31]
[1750188629310,1.14773602,649.42,648.84,1.31]
[1750188630516,1.14773602,649.43,648.84,1.31]
[1750188631218,1.14773602,649.44,648.84,1.31]
[1750188631416,1.14773602,649.45,648.84,1.31]
[1750188631816,1.14773602,649.44,648.84,1.31]
[1750188632017,1.14773602,649.45,648.84,1.31]
[1750188635315,1.14773602,649.45,648.85,1.187]
[1750188640523,1.14773602,649.44,648.85,1.187]
[1750188641425,1.14773602,649.45,648.85,1.187]
[1750188641625,1.14773602,649.44,648.85,1.187]
[1750188641826,1.14773602,649.46,648.86,1.126]
[1750188642025,3.8278476,650.11,648.86,1.126]
[1750188642026,1.14773602,649.47,648.86,1.126]
[1750188642822,1.14773602,649.48,648.86,1.126]
[1750188643922,1.14773602,649.47,648.86,1.126]
[1750188644122,1.14773602,649.46,648.86,1.126]
[1750188644325,1.14773602,649.45,648.86,1.126]
[1750188645320,1.14773602,649.46,648.86,1.126]
[1750188647931,1.14773602,649.48,648.86,1.126]
[1750188648127,1.14773602,649.43,648.86,1.126]
[1750188648631,1.14773602,649.42,648.86,1.126]
[1750188649227,1.14773602,649.43,648.86,1.126]
[1750188651731,1.14773602,649.44,648.86,1.126]
[1750188652431,1.14773602,649.42,648.86,1.126]
[1750188653337,1.14773602,649.41,648.86,1.126]
[1750188654937,1.14773602,649.41,648.85,1.187]
[1750188657543,1.14773602,649.41,648.86,1.387]
[1750188658040,1.14773602,649.38,648.86,1.387]
[1750188658445,1.14773602,649.37,648.86,1.387]
[1750188661346,1.14773602,649.39,648.86,1.387]
[1750188662346,1.14773602,649.38,648.86,1.387]
[1750188663043,1.14773602,649.36,648.86,1.387]
[1750188663247,1.14773602,649.35,648.86,1.387]
[1750188663542,0.26797678,649.72,648.86,1.387]
[1750188663543,1.14773602,649.36,648.86,1.387]
[1750188664549,1.14773602,649.35,648.86,1.387]
[1750188664946,1.14773602,649.36,648.86,1.387]
[1750188665845,1.14773602,649.35,648.86,1.387]
[1750188666651,1.14773602,649.34,648.86,1.387]
[1750188667652,1.14773602,649.33,648.86,1.387]
[1750188668558,1.14773602,649.32,648.86,1.387]
[1750188669454,1.53113904,649.44,648.85,1.187]
[1750188669756,1.15040638,649.31,648.85,1.187]
[1750188670655,1.15040638,649.3,648.85,1.187]
[1750188671259,1.15040638,649.28,648.85,1.187]
[1750188671760,1.15040638,649.28,648.86,1.447]
[1750188672156,1.15040638,649.27,648.86,1.447]
[1750188672360,1.15040638,649.28,648.86,1.447]
[1750188672559,1.15040638,649.27,648.86,1.447]
[1750188674256,1.15040638,649.27,648.87,1.36]
[1750188674660,1.15040638,649.26,648.87,1.36]
[1750188675161,1.15040638,649.27,648.87,1.36]
[1750188675360,1.15040638,649.26,648.87,1.36]
[1750188675755,1.15040638,649.24,648.87,1.36]
[1750188675959,1.15040638,649.25,648.87,1.36]
[1750188676156,1.15040638,649.24,648.87,1.36]
[1750188676861,1.15168376,649.24,648.87,1.36]
[1750188678559,1.15168376,649.25,648.87,1.36]
[1750188678759,1.15168376,649.24,648.87,1.36]
[1750188678959,1.15168376,649.21,648.88,1.491]
[1750188681160,1.15168376,649.22,648.88,1.491]
[1750188681461,1.15168376,649.21,648.88,1.491]
[1750188681667,1.15168376,649.22,648.88,1.491]
[1750188681964,1.15168376,649.2,648.88,1.491]
[1750188685568,1.28849449,649.32,648.88,1.491]
[1750188685569,1.15168376,649.21,648.88,1.491]
[1750188686370,1.15168376,649.23,648.88,1.491]
[1750188687168,1.15168376,649.24,648.88,1.491]
[1750188688675,1.15168376,649.22,648.88,1.491]
[1750188689671,1.15168376,649.23,648.88,1.491]
[1750188691871,0.26797678,649.72,648.88,1.491]
[1750188691872,1.15168376,649.22,648.88,1.491]
[1750188694776,1.15168376,649.21,648.88,1.491]
[1750188694974,1.15168376,649.2,648.88,1.491]
[1750188695277,1.15168376,649.18,648.88,1.491]
[1750188696174,1.15168376,649.16,648.88,1.491]
[1750188699278,1.15168376,649.15,648.88,1.491]
[1750188701078,1.15168376,649.14,648.88,1.491]
[1750188701275,1.15168376,649.15,648.88,1.491]
[1750188702181,1.15168376,649.14,648.89,1.216]
[1750188702480,1.15168376,649.15,648.89,1.216]
[1750188702879,1.15168376,649.14,648.89,1.216]
[1750188703383,1.15168376,649.15,648.89,1.216]
[1750188703581,1.15168376,649.14,648.89,1.216]
[1750188704181,1.15168376,649.13,648.89,1.216]
[1750188704483,1.15168376,649.12,648.89,1.216]
[1750188704882,1.15168376,649.14,648.89,1.216]
[1750188705384,1.15168376,649.13,648.89,1.216]
[1750188705580,1.15168376,649.14,648.89,1.216]
[1750188705785,1.15168376,649.13,648.89,1.216]
[1750188705987,1.15168376,649.14,648.89,1.216]
[1750188706583,1.15168376,649.13,648.89,1.216]
[1750188711481,1.15168376,649.12,648.89,1.216]
[1750188713484,1.15168376,649.13,648.89,1.216]
[1750188713683,1.15168376,649.1,648.89,1.216]
[1750188713883,1.15168376,649.11,648.89,1.216]
[1750188714087,1.15168376,649.1,648.89,1.216]
[1750188715087,1.15168376,649.1,648.9,1.442]
[1750188715485,1.15168376,649.11,648.9,1.442]
[1750188715689,1.15168376,649.1,648.9,1.442]
[1750188717286,1.15168376,649.09,648.9,1.442]
[1750188717490,1.15168376,649.1,648.9,1.442]
[1750188717786,1.15168376,649.08,648.9,1.442]
[1750188718386,1.15168376,649.06,648.9,1.442]
[1750188718685,1.15168376,649.07,648.9,1.442]
[1750188719489,1.15168376,649.06,648.9,1.442]
[1750188720289,1.15168376,649.07,648.9,1.442]
[1750188721786,1.15168376,649.08,648.9,1.442]
[1750188722386,1.15168376,649.07,648.9,1.442]
[1750188722586,1.15168376,649.08,648.9,1.442]
[1750188723085,1.15168376,649.05,648.9,1.442]
[1750188724186,1.15168376,649.06,648.9,1.442]
[1750188724487,1.15168376,649.05,648.9,1.442]